Cogmind - Beta 11 @@@ ROGUE MODE // 2022.04.01 @ 11:36:39 Player: Dhoby_Ghaut Result: Destroyed by as-71723 with Assembled Rifle Performance ------------- Evolutions (0) 0 Regions Visited (2) 400 Robots Destroyed (15) 75 Value Destroyed (389) 389 Prototype IDs (4) 80 Alien Tech Used (0) 0 Bonus (0) 0 TOTAL SCORE: 944 Bonus ------- None Cogmind --------- Core Integrity 0/250 Matter 300/300 Energy 99/100 System Corruption 2% Temperature Cool (0) Movement Rolling (110) Ox2 Location -10/Mines Parts ------- > --- POWER (1) -------- (None) > --- PROPULSION (2) --- Wheel > --- UTILITY (2) ------ Improved Heat Sink Large Storage Unit > --- WEAPON (2) ------- Small Laser > --- INVENTORY (15) --- Ion Engine Light Treads Light Treads Light Treads Light Treads Aluminum Leg Aluminum Leg Compact Wheel Small Storage Unit Medium Storage Unit Small Matter Pod (50) Structural Scanner Small Laser Assault Rifle Hammer Peak State ------------ > --- POWER ------------ Ion Engine > --- PROPULSION ------- Light Treads Light Treads > --- UTILITY ---------- Improved Heat Sink Large Storage Unit > --- WEAPON ----------- Small Laser Particle Gun > --- INVENTORY -------- Light Ion Engine Aluminum Leg Aluminum Leg Wheel Small Storage Unit Medium Storage Unit Small Matter Pod Structural Scanner Medium Laser Small Laser [Rating: 11] Favorites ----------- Power Ion Engine Engine Ion Engine Propulsion Light Treads Treads Light Treads Wheel Wheel Utility Large Storage Unit Device Improved Heat Sink Storage Large Storage Unit Weapon Small Laser Energy Gun Small Laser Build | -11 -10 -10 ------- Run | Scr Mat Min Slots Evolved . | . . . Power . | . . . Propulsion . | . . . Utility . | . . . Weapon . | . . . Parts Attached 21 | 5 15 1 Power 5 | 2 3 . Engine 5 | 2 3 . Core . | . . . Reactor . | . . . Propulsion 5 | 1 3 1 Treads 3 | . 3 . Leg . | . . . Wheel 2 | 1 . 1 Hover . | . . . Flight . | . . . Utility 4 | 1 3 . Device 2 | . 2 . Storage 2 | 1 1 . Processor . | . . . Hackware . | . . . Protection . | . . . Artifact . | . . . Weapon 7 | 1 6 . Energy Gun 7 | 1 6 . Energy Cannon . | . . . Ballistic Gun . | . . . Ballistic Cannon . | . . . Launcher . | . . . Special Weapon . | . . . Impact Weapon . | . . . Slashing Weapon . | . . . Piercing Weapon . | . . . Special Melee Weapon . | . . . Unidentified Prototypes . | . . . Parts Lost 8 | . 5 3 Power 3 | . 2 1 Propulsion 2 | . 1 1 Utility . | . . . Weapon 3 | . 2 1 Highest Loss Streak 3 | . 2 3 To Critical Strikes . | . . . Average Slot Usage (%) 96 | . 96 89 Engine 13 | . 13 12 Treads 23 | . 24 12 Wheel 3 | . 3 14 Device 13 | . 13 14 Storage 14 | . 14 14 Energy Gun 26 | . 26 22 Naked Turns . | . . . Heaviest Build 31 | 11 31 28 Greatest Support 40 | 10 40 40 Greatest Overweight (x) 2 | 1 1 2 Average Overweight (x) . | . . 1 Largest Inventory Capacity 15 | 8 15 15 Average Capacity 13 | 7 13 15 Most Carried 15 | 7 15 15 Average Carried 10 | 4 10 15 Final Capacity 15 | 8 15 15 Final Carried 15 | 7 15 15 Class Distribution -------------------- 82% | Mutant 17% | Scavenger-Mutant Dominant Class ---------------- Mutant | -10/Materials Mutant | -10/Mines Resources | -11 -10 -10 ----------- Run | Scr Mat Min Matter Collected 439 | 225 214 . Remotely . | . . . Salvage Created 609 | . 609 . Parts 23 | . 23 . Haulers Intercepted 2 | . 2 . Recyclers Shooed . | . . . Parts Field Recycled . | . . . Retrieved Matter . | . . . Parts Self-Destructed . | . . . Prevented . | . . . Kills | -11 -10 -10 ------- Run | Scr Mat Min Combat Hostiles Destroyed 8 | . 8 . Guns 8 | . 8 . Classes Destroyed 7 | . 7 . Worker 1 | . 1 . Builder 1 | . 1 . Hauler 2 | . 2 . Recycler 1 | . 1 . Operator 1 | . 1 . Watcher 1 | . 1 . Grunt 8 | . 8 . Best Kill Streak 2 | . 2 . Combat Bots Only 2 | . 2 . Max Kills in Single Turn 2 | . 2 . Gunslinging . | . . . Exploded . | . . . Melee . | . . . Uniques/NPCs Destroyed . | . . . Combat | -11 -10 -10 -------- Run | Scr Mat Min Damage Taken 1080 | . 555 525 Core 255 | . 77 178 Absorbed by Shields . | . . . Core Remaining (%) 100 | 100 . . Volleys Fired 49 | . 49 . Largest 2 | . 2 . Hottest 115 | . 115 . Shots Fired 93 | . 93 . Gun 93 | . 93 . Cannon . | . . . Launcher . | . . . Special . | . . . Kinetic . | . . . Thermal 93 | . 93 . Explosive . | . . . Electromagnetic . | . . . Robot Hit Streak 8 | . 8 . Robot Miss Streak 3 | . 3 . Penetration Max . | . . . Secondary Targets . | . . . Shots Hit Robots 61 | . 61 . Core Hits 27 | . 27 . Critical Kills . | . . . Critical Parts Destroyed . | . . . Critical Strikes 3 | . 3 . Burn 3 | . 3 . Melee Attacks . | . . . Impact . | . . . Slashing . | . . . Piercing . | . . . Sneak Attacks . | . . . Combat Hostiles . | . . . Follow-up Attacks . | . . . Damage Inflicted 940 | . 938 2 Guns 757 | . 757 . Cannons . | . . . Explosions 181 | . 181 . Melee . | . . . Ramming 2 | . . 2 Kinetic . | . . . Thermal 938 | . 938 . Explosive . | . . . Electromagnetic . | . . . Impact . | . . . Slashing . | . . . Piercing . | . . . Highest Corruption 2 | . . 2 Average Corruption 2 | . . 2 Corruption Purged . | . . . Corruption Blocked . | . . . Effects 1 | . . 1 Heat Flow Errors 1 | . . 1 Overload Shots . | . . . Overflow Damage 72 | . 72 . Projectiles . | . . . Explosions 72 | . 72 . Melee . | . . . Knockbacks . | . . . Impact . | . . . Kinetic . | . . . Secondary . | . . . Self-Inflicted Damage 112 | . 112 . Shots 1 | . 1 . Rammed 1 | . . 1 Targets Rammed 1 | . . 1 Kicked . | . . . Crushed . | . . . Highest Temperature 318 | . 318 99 Average Temperature 97 | . 99 53 Received Heat Transfer 309 | . 249 60 Siege Activations . | . . . Robots Corrupted . | . . . Combat Hostiles . | . . . Parts Fried . | . . . Impact Corruptions . | . . . Robots Melted . | . . . Combat Hostiles . | . . . Parts Melted 7 | . 7 . Heat Transferred 2244 | . 2244 . Parts Sabotaged . | . . . Parts Stolen . | . . . Parts Stripped . | . . . Power Chain Reactions . | . . . Missiles Intercepted . | . . . Alert | -11 -10 -10 ------- Run | Scr Mat Min Peak Influence 240 | . 240 49 Initial 49 | . . 49 Average 92 | . 99 42 Maximum Alert Level 1 | . 1 . Low Security (%) 87 | 100 85 100 Level 1 12 | . 14 . Level 2 . | . . . Level 3 . | . . . Level 4 . | . . . Level 5 . | . . . High Security . | . . . Max Security . | . . . Squads Dispatched 1 | . 1 . Investigation . | . . . Extermination . | . . . Reinforcement 1 | . 1 . Assault . | . . . Garrison . | . . . Intercept . | . . . Searches Triggered . | . . . Construction Impeded . | . . . Haulers Reinforced . | . . . Active Scanning Responses . | . . . Cargo Convoy Interrupts . | . . . Stealth | -11 -10 -10 --------- Run | Scr Mat Min Distress Signals . | . . . Communications Jammed . | . . . Distress Signals . | . . . Times Spotted 42 | . 20 22 Peak Tracking Total 20 | . 4 20 Tactical Retreats 5 | . 2 3 Traps | -11 -10 -10 ------- Run | Scr Mat Min Traps Triggered 1 | . 1 . Indirectly . | . . . Trap Hack Attempts . | . . . Triggered . | . . . Disarmed . | . . . Reprogrammed . | . . . Reused . | . . . Traps Extracted . | . . . Installed . | . . . Triggered . | . . . Machines | -11 -10 -10 ---------- Run | Scr Mat Min Machines Disabled 3 | . 3 . Max in Single Turn 2 | . 2 . Machines Sabotaged . | . . . Garrisons Compromised . | . . . Overloaded Fab Kills . | . . . Hacking | -11 -10 -10 --------- Run | Scr Mat Min Machines Accessed 6 | . 6 . Terminals 6 | . 6 . Fabricators . | . . . Repair Stations . | . . . Recycling Units . | . . . Scanalyzers . | . . . Garrison Access . | . . . Total Hacks 19 | . 19 . Successful 10 | . 10 . Failed 8 | . 8 . Catastrophic . | . . . Database Lockouts 1 | . 1 . Manual 13 | . 13 . Terminals 19 | . 19 . Fabricators . | . . . Repair Stations . | . . . Recycling Units . | . . . Scanalyzers . | . . . Garrison Access . | . . . Terminal Hacks 6 | . 6 . Robot Analysis 1 | . 1 . Prototype ID Bank 3 | . 3 . Locate Traps 1 | . 1 . Zone Layout 1 | . 1 . Fabricator Hacks . | . . . Repair Station Hacks . | . . . Recycling Unit Hacks . | . . . Scanalyzer . | . . . Garrison Access Hacks . | . . . Unauthorized Hacks 4 | . 4 . Terminals 4 | . 4 . Botnet 3 | . 3 . Disrupt 1 | . 1 . Fabricators . | . . . Repair Stations . | . . . Recycling Units . | . . . Scanalyzers . | . . . Garrison Access . | . . . Data Cores Recovered . | . . . Used . | . . . Hacking Detections 6 | . 6 . Full Trace Events 1 | . 1 . Feedback Events . | . . . Feedback Blocked . | . . . Robot Schematics Acquired . | . . . Robots Built . | . . . Authchips . | . . . Time . | . . . Total Robot Build Rating . | . . . Part Schematics Acquired . | . . . Parts Built . | . . . Authchips . | . . . Time . | . . . Total Part Build Rating . | . . . Parts Repaired . | . . . Time . | . . . Parts Recycled . | . . . Recycled Matter . | . . . Retrieved Matter . | . . . Retrieved Components . | . . . Parts Scanalyzed . | . . . Part Schematics Acquired . | . . . Parts Damaged . | . . . Bothacking | -11 -10 -10 ------------ Run | Scr Mat Min Used RIF Installer . | . . . Robots Hacked . | . . . Non-combat . | . . . Combat . | . . . Robot Hacks Applied . | . . . Relay Couplers Released . | . . . Fabnet Peak Effective % . | . . . Robots Rewired . | . . . Allies Hacked . | . . . Hacks Repelled . | . . . Allies | -11 -10 -10 -------- Run | Scr Mat Min Total Allies . | . . . Largest Group . | . . . Highest-Rated Group . | . . . Highest-Rated Ally . | . . . Total Orders . | . . . Ally Attacks . | . . . Total Damage . | . . . Kills . | . . . Allies Corrupted . | . . . Allies Melted . | . . . Intel | -11 -10 -10 ------- Run | Scr Mat Min Robot Analysis Total 1 | . 1 . Derelict Logs Recovered . | . . . Drone Launches . | . . . Drone Recoveries . | . . . Exploration | -11 -10 -10 ------------- Run | Scr Mat Min Turns Passed 1253 | 52 1132 69 Spaces Moved 773 | 45 669 59 Core 4 | 4 . . Treads 464 | . 463 1 Legs . | . . . Wheels 305 | 41 206 58 Hover . | . . . Flight . | . . . Fastest Speed 50 | 50 95 110 Average Speed 134 | 86 139 110 Slowest Speed 160 | 95 160 160 Overloaded Moves . | . . . Propulsion Burnouts . | . . . Robots Hopped . | . . . Cave-ins Triggered . | . . . Exploration Rate (%) 37 | 4 81 27 Regions Visited 2 Branch Regions 1 Pre-discovered Areas . | . . . Known Exits Taken . | . . . Unknown Exits Taken 2 | 1 1 . Scrap Searched . | . . . Spaces Dug . | . . . Terrain Destroyed 19 | . 19 . Melee . | . . . Projectile . | . . . AOE 19 | . 19 . Terrain Rammed . | . . . Walls Destroyed . | . . . Machines Disabled . | . . . Actions | -11 -10 -10 --------- Run | Scr Mat Min Total 886 | 55 770 61 Wait 26 | . 26 . Move 771 | 44 668 59 Hop . | . . . Pick Up 16 | 6 10 . Fast Attach 6 | 4 2 . Attach 7 | . 7 . Detach 1 | . 1 . Swap 8 | 1 6 1 Drop 1 | . 1 . Fire 49 | . 49 . Melee . | . . . Ram . | . . . Kick . | . . . Crush 1 | . . 1 Escape Stasis . | . . . Rewire . | . . . Trap . | . . . Miscellaneous . | . . . Route ------- -11/Scrapyard -10/Materials (discovered 3 exits: [*Mat x2] / [*Min]) -10/Mines History --------- Turn | Location | Event 5 | -11/Scrapyard | Discovered new exit (range 16) 53 | -11/Scrapyard | Entered Materials 336 | -10/Materials | Build established: Mutant 429 | -10/Materials | Central database locked down 578 | -10/Materials | Discovered new exit (range 12) 664 | -10/Materials | Discovered new exit (range 13) 824 | -10/Materials | Discovered new exit (range 12) 1185 | -10/Materials | Entered Mines 1186 | -10/Mines | Assembled infested the area 1197 | -10/Mines | Core integrity fell below 50% 1254 | -10/Mines | Core integrity fell below 20% 1254 | -10/Mines | Destroyed by as-71723 with Assembled Rifle Last Messages --------------- 00989_ K-01 Serf collects debris. 01044_ Connecting with Terminal... LOCATION=UNKNOWN GOAL=ESCAPE 01186_ ALERT: Infestation in the mines, dispatching Demolisher response squad. 01186_ K-01 Serf collects debris. 01186_ K-01 Serf suffers critical hit (Destroy). 01186_ K-01 Serf collects debris. 01190_ K-01 Serf destroyed. 01194_ Slammed into as-34842. 01216_ as-30101 suffers critical hit (Destroy). 01216_ as-30101 destroyed. 01229_ Sml. Laser destroyed. 01229_ System corrupted by crushing effect (+2). 01229_ Knocked back. 01240_ Lgt. Treads destroyed. 01242_ System corrupted: Heat flow error (+133). 01246_ Ion Engine destroyed. 01250_ as-90499 destroyed. Map ----- +----------------------------------------------------+ | ??????????????????????????# #??????? ???????????? | | ??????????????????????????# #??????? #???????????? | | ??????????????????????????# #????????????????????? | | ??????????????????????????# #????????????????????? | | ??????????????????????????# #????????#???????????? | | ??????????????????????????# #??????? #???????????? | | ??????????????????????????# #???#### ????????????? | | ??????????????????????????# #???# ????????????? | | ??????????????????????????# #???# ?????????????? | | ??????????????????????????# #???# #?????????????? | | ??????????????????????????# #???# #?????????????? | | ??????????????????????????# #???# #?????????????? | | ??????????????????????????# ##### #?????????????? | | ??????????????????????????# #?????????????? | | ??????????????????????????####### #?????????????? | | ????????????????????????????????# ###???????????? | | ????????????????????????????????# ##??????????? | | ???????????????????????????###### ##?????????? | | ???????????????????????????# ##????????? | | ???????????????????????????# #### #????????? | | ???????????????????????????????## ##???????? | | ???????????????????# ?????????## #???????? | | ???????????????????# ?????####% #???????? | | ??????????????????## ##?## aaa ##???????? | | ??????????????????# ## ##????????? | | ??????????????????# @ a ##?????????? | | ??????????????????# #??????????? | | ??????????????????## ####### #?????????? | | ???????????????????## ####?????? #?????????? | | ????????????????????## ?????????? #?????????? | | ?????????????????????## ?????????? #?????????? | | ??????????????????????# ?????????? #?????????? | | ?????????????????????? ?????????? #?????????? | | ????????????????????? ??????????? ?????????? | | ?????????????????????###???????????? #????????? | | ?????????????????????????????????????????????????? | | ?????????????????????????????????????????????????? | | ?????????????????????????????????????????????????? | | ?????????????????????????????????????????????????? | | ?????????????????????????????????????????????????? | | ?????????????????????????????????????????????????? | | ?????????????????????????????????????????????????? | | ?????????????????????????????????????????????????? | | ?????????????????????????????????????????????????? | | ?????????????????????????????????????????????????? | | | | | | | | | | | +----------------------------------------------------+ Best States ------------- Heat Dissipation 39 Energy Generation 10 Energy Capacity 250 Matter Stores 300 Matter Capacity 300 Sight Range 16 Terrain Scan Density 10 Evasion (%) 44 Recoil Reduction 2 Item Schematics ----------------- None Robot Schematics ------------------ None Fabricated ------------ Nothing Alien Tech Used ----------------- None Achievements -------------- None Challenges ------------ None Game ------ Seed MolecularChainStorage Manual? 0 Play Time 00:12:00 Cumulative 133.9 hours Start 2022.04.01 @ 11:22:34 End 2022.04.01 @ 11:36:39 Sessions 1 Manual Loads 0 Difficulty Rogue Special Mode None Game No. 117 Rogue 117 Adventurer 0 Explorer 0 Win Type - Total 12 Types 12/0/0/0/0/0/0/0/0 Lore% 66 Gallery% 69 Achievement% 59 Wizard Run 0 Options --------- ASCII 0 Keyboard 0 Movement Vi Keybinds 0 Fullscreen 1 Font 18/SmallcapsGlow Map View 76x50 Tactical HUD 1 Map Filters NONE Filters NONE Steam 0 RUN: c1c3500f-18d4-493c-b32c-98d158d7b607